bitfinex-derivatives/quotes_ETHF0:USTF0_20250817
["timestamp","ask_amount","ask_price","bid_price","bid_amount"]
[1755445004068,1.0294,4566.1,4566.0,1.4419]
[1755445004263,1.4528,4566.1,4566.0,1.4419]
[1755445004463,0.5856,4565.9,4565.8,0.2403]
[1755445004768,0.5856,4565.9,4565.8,1.4419]
[1755445004769,1.1946,4565.9,4565.8,1.4419]
[1755445004963,1.1946,4565.9,4565.7,1.74442637]
[1755445004964,0.3665,4566.8,4566.1,0.2486]
[1755445005170,1.0863,4566.6,4566.5,2.31012637]
[1755445005366,1.4528,4566.6,4566.5,0.3292]
[1755445005573,1.4528,4566.2,4566.1,1.2054]
[1755445005772,1.4528,4566.2,4566.1,0.8181]
[1755445006273,1.4528,4566.2,4566.1,1.2054]
[1755445007079,0.8281,4566.2,4566.1,3.18632637]
[1755445007370,0.5856,4566.2,4566.1,3.18632637]
[1755445007674,1.4505,4566.2,4566.1,3.18632637]
[1755445008376,1.4505,4566.2,4566.1,2.94982637]
[1755445009175,1.4505,4566.2,4566.1,2.56252637]
[1755445009375,0.2559,4566.2,4566.1,1.1904]
[1755445009572,1.2368,4566.7,4566.6,0.5763]
[1755445009774,1.4927,4566.7,4566.6,1.4494]
[1755445010076,1.2368,4566.7,4566.6,1.4494]
[1755445010481,1.3225,4567.0,4566.9,1.4494]
[1755445010686,0.6784,4567.0,4566.9,1.4494]
[1755445011188,0.1712,4567.0,4566.9,1.4494]
[1755445011482,0.4249,4567.0,4566.9,1.4494]
[1755445011687,1.0688,4567.3,4567.2,0.1593]
[1755445011888,1.4927,4567.3,4567.2,0.5763]
[1755445012284,1.4927,4567.3,4567.2,0.8301]
[1755445012683,1.4927,4567.3,4567.2,1.4494]
[1755445013085,1.4927,4567.3,4567.2,1.2024]
[1755445013488,1.4927,4567.3,4567.2,0.8301]
[1755445013986,1.4927,4567.3,4567.2,1.2024]
[1755445014181,0.8961,4567.3,4567.2,1.2024]
[1755445014386,0.8961,4567.3,4567.2,1.4494]
[1755445014983,0.2535,4567.2,4567.0,0.2538]
[1755445015188,0.5849,4567.1,4567.0,0.2538]
[1755445015485,0.5849,4567.1,4566.8,0.2538]
[1755445015786,0.8384,4566.9,4566.8,1.4494]
[1755445015980,0.1712,4566.9,4566.8,1.4494]
[1755445016184,0.1712,4567.0,4566.9,1.0324]
[1755445016387,1.2027,4567.0,4566.9,0.9486]
[1755445016778,1.0427,4567.0,4566.9,0.9486]
[1755445016986,1.0427,4567.0,4566.9,1.4494]
[1755445017488,1.2027,4567.0,4566.9,1.4494]
[1755445017678,1.3027,4567.0,4566.9,1.4494]
[1755445017881,0.6784,4567.0,4566.9,1.4494]
[1755445018291,1.2027,4567.0,4566.9,1.4494]
[1755445018591,1.0427,4567.0,4566.9,1.4494]
[1755445019291,1.3027,4567.0,4566.9,1.4494]
[1755445019593,1.3027,4567.0,4566.9,1.2024]
[1755445020384,0.5849,4566.2,4566.1,23.9601]
[1755445020584,1.2027,4566.2,4566.1,24.8332]
[1755445021591,1.3027,4566.2,4566.1,4.4102]
[1755445021895,1.3027,4566.2,4566.1,4.6572]
[1755445022088,1.89935274,4567.1,4566.1,4.1564]
[1755445022286,0.1712,4566.3,4566.2,1.4494]
[1755445023684,1.74442637,4567.4,4566.4,0.8731]
[1755445023884,0.1712,4566.7,4566.6,4.6572]
[1755445024090,1.74442637,4567.4,4566.6,4.6572]
[1755445024389,0.1712,4566.8,4566.7,1.4494]
[1755445024993,0.1712,4566.8,4566.7,1.76492001]
[1755445025388,1.74442637,4567.4,4566.7,1.76493045]
[1755445025590,0.75071644,4567.3,4567.2,1.4494]
[1755445025887,0.75071644,4567.3,4567.2,1.76486247]
[1755445026088,0.1712,4567.3,4567.2,1.76486247]
[1755445027092,0.1712,4567.4,4567.3,1.4494]
[1755445027293,0.75064416,4567.4,4567.3,1.76486247]
[1755445028092,0.75064416,4567.4,4567.3,1.4494]
[1755445028699,0.75064416,4567.4,4567.1,3.2078]
[1755445028700,0.1712,4567.2,4567.1,3.0669]
[1755445028987,0.1712,4567.2,4564.0,1.09499]
[1755445028988,4.15838572,4567.2,4565.8,0.4984]
[1755445029291,3.2078,4566.5,4565.6,3.4548]
[1755445029482,1.74442637,4566.1,4565.7,0.247]
[1755445029686,0.57963591,4566.0,4565.6,3.4616]
[1755445029887,0.0219,4565.9,4565.1,0.247]
[1755445030093,1.74442637,4565.3,4564.9,3.2078]
[1755445030286,0.57963591,4565.2,4564.9,3.2078]
[1755445031389,0.57963591,4565.2,4564.3,4.0379]
[1755445031589,0.57963591,4565.2,4564.4,0.8233]
[1755445031895,1.74442637,4564.9,4564.5,0.247]
[1755445032083,0.57963591,4564.8,4564.5,0.247]
[1755445032289,3.2078,4565.0,4564.5,0.247]
[1755445032490,0.57918719,4564.9,4564.5,0.247]
[1755445032689,0.57918719,4564.8,4564.5,0.247]
[1755445032891,5.66905093,4564.7,4563.8,3.2078]
[1755445033095,3.2078,4564.5,4563.8,3.2078]
[1755445033297,0.57918719,4564.4,4563.5,0.247]
[1755445033593,5.08986374,4564.2,4563.1,3.2078]
[1755445033798,5.66905093,4564.2,4563.3,0.247]
[1755445034191,8.69095093,4564.2,4563.1,3.2078]
[1755445034396,8.66905093,4564.2,4563.1,3.2078]
[1755445034594,0.57918719,4564.2,4563.5,0.247]
[1755445034800,0.57918719,4564.2,4563.2,0.3723]
[1755445035092,0.57918719,4564.2,4563.8,0.247]
[1755445035290,0.57918719,4564.2,4564.1,0.34559448]
[1755445035491,0.57918719,4564.2,4564.1,0.09859448]
[1755445036095,3.57918719,4564.2,4564.1,0.09859448]
[1755445037201,3.0,4564.2,4564.1,0.09859448]
[1755445042501,28.55266374,4564.5,4564.1,0.35149448]
[1755445042801,0.57558598,4564.4,4564.1,0.33449448]
[1755445043000,28.55266374,4564.5,4564.3,0.2529]
[1755445043197,0.57557096,4564.4,4564.3,0.6503]
[1755445043701,0.57557096,4564.4,4564.1,0.09859448]
[1755445043901,5.08986374,4564.2,4564.1,0.09859448]
[1755445044101,5.6654347,4564.2,4564.1,0.09859448]
[1755445045505,8.6654347,4564.2,4564.1,0.09859448]
[1755445048704,0.57557096,4564.2,4564.1,0.35149448]
[1755445048904,25.9134347,4564.2,4564.1,0.09859448]
[1755445050005,28.9134347,4564.2,4564.1,0.09859448]
[1755445052420,24.31625218,4564.2,4563.6,0.2529]
[1755445052714,4.95414061,4563.7,4563.6,0.2529]
[1755445052903,25.78871157,4563.7,4563.6,0.2529]
[1755445053710,24.04237096,4563.7,4563.3,0.2529]
[1755445053909,1.74634061,4563.4,4563.3,0.2529]
[1755445054112,2.32191157,4563.4,4561.7,0.8526]
[1755445054318,1.74634061,4561.8,4561.7,1.432]
[1755445054519,20.83757096,4561.8,4561.7,1.432]
[1755445054813,0.57557096,4561.8,4561.7,1.432]
[1755445055004,20.265,4561.8,4561.7,1.432]
[1755445055204,19.8763,4561.8,4561.7,1.432]
[1755445056318,20.1317,4561.8,4561.7,1.432]
[1755445056513,20.6848,4561.8,4561.7,1.432]
[1755445057315,3.2078,4562.2,4561.7,0.5794]
[1755445057614,3.2078,4562.2,4562.1,1.432]
[1755445057812,23.4728,4562.2,4562.1,1.432]
[1755445059910,33.13697037,4562.7,4562.2,0.8526]
[1755445060216,3.2078,4563.0,4562.7,0.8526]
[1755445060410,3.2078,4563.0,4562.4,3.2078]
[1755445060411,3.2078,4563.0,4562.9,1.432]
[1755445060616,4.1756,4563.0,4562.9,1.432]
[1755445060813,4.6221,4563.0,4562.9,0.5818]
[1755445061011,0.1986,4562.9,4562.7,0.4888]
[1755445061214,0.5846,4562.8,4562.7,0.4888]
[1755445061517,1.4143,4562.8,4562.7,0.8177]
[1755445062020,1.4143,4562.8,4562.7,1.0682]
[1755445062221,2.54477037,4562.8,4562.7,1.432]
[1755445062518,21.83697037,4562.8,4562.7,1.432]
[1755445062821,1.57697037,4562.8,4562.7,1.432]
[1755445063018,21.83197037,4562.8,4562.7,1.432]
[1755445063516,20.255,4562.8,4562.7,1.432]
[1755445064924,20.6803,4562.8,4562.7,1.432]
[1755445065214,22.79977037,4562.8,4562.7,1.432]
[1755445065420,22.08737037,4562.8,4562.7,1.432]
[1755445065620,20.255,4562.8,4562.7,1.432]
[1755445066221,22.08737037,4562.8,4562.7,1.432]
[1755445066918,22.66505602,4562.8,4562.7,1.432]
[1755445067221,23.04825602,4562.8,4562.7,1.432]
[1755445067424,22.66505602,4562.8,4562.7,1.432]
[1755445068322,2.15465602,4562.8,4562.7,1.432]
[1755445068522,22.39565602,4562.8,4562.7,1.432]
[1755445068725,22.38865602,4562.8,4562.7,1.432]
[1755445068920,0.57768565,4562.8,4562.7,4.4539]
[1755445069130,1.50695602,4563.5,4563.4,1.3354]
[1755445069422,20.238,4563.6,4563.5,1.3354]
[1755445071314,3.4651,4564.2,4563.5,0.5685]
[1755445071315,3.2078,4564.2,4563.5,0.5685]
[1755445071624,3.2078,4564.2,4564.1,1.3354]
[1755445071823,23.4408,4564.2,4564.1,1.3354]
[1755445072722,21.0009,4564.2,4564.1,1.3354]
[1755445072925,21.1572,4564.2,4564.1,1.3354]
[1755445073224,24.8596,4564.2,4564.1,0.4133]
[1755445073425,1.2625,4563.9,4563.8,0.2553]
[1755445073626,21.6538,4563.9,4563.8,0.2553]
[1755445073925,21.4165,4563.9,4563.1,3.2078]
[1755445074229,1.1815,4563.2,4563.1,4.5432]
[1755445074428,21.4195,4563.2,4563.1,4.5432]
[1755445075624,21.1622,4563.2,4563.1,4.5432]
[1755445076223,20.791,4563.2,4563.1,4.5432]
[1755445076525,20.238,4563.2,4563.1,4.5432]
[1755445078721,3.2078,4563.7,4563.1,4.5432]
[1755445078927,3.2078,4563.7,4563.6,1.3354]
[1755445079121,0.3712,4563.9,4563.6,1.3354]
[1755445079323,3.2078,4564.3,4564.2,1.0787]
[1755445079527,23.4238,4564.3,4564.2,1.3354]
[1755445079932,3.2078,4564.3,4564.2,1.3354]
[1755445080119,23.4288,4564.3,4564.2,1.3354]
[1755445080319,24.6103,4564.3,4564.2,1.3354]
[1755445081019,24.92650093,4564.3,4564.2,1.3354]
[1755445081226,25.18380093,4564.3,4564.2,1.3354]
[1755445081628,21.97600093,4564.3,4564.2,1.3354]
[1755445082320,20.79550093,4564.3,4564.2,1.3354]
[1755445083229,21.03330093,4564.3,4564.2,1.3354]
[1755445083430,21.71970093,4564.3,4564.2,1.3354]
[1755445083631,21.97700093,4564.3,4564.2,1.0787]
[1755445083930,21.34850093,4564.3,4563.6,3.2078]
[1755445084131,1.75500093,4564.2,4564.1,0.58]
[1755445084432,1.1815,4564.2,4564.1,0.58]
[1755445084728,1.1815,4564.2,4564.1,0.8367]
[1755445084928,1.1815,4564.2,4564.1,0.4133]
[1755445085227,1.99172171,4564.2,4564.1,0.2553]
[1755445085431,1.99172171,4564.2,4564.1,0.58]
[1755445085728,1.99172171,4564.2,4563.6,3.2078]
[1755445085729,0.609,4564.3,4564.2,0.8238]
[1755445085929,20.823,4564.3,4564.2,0.8238]
[1755445086133,20.9819,4564.3,4564.2,0.8238]
[1755445086319,20.9819,4564.3,4564.2,1.3354]
[1755445086525,21.1382,4564.3,4564.2,1.3354]
[1755445087028,21.3955,4564.3,4564.2,1.3354]
[1755445087426,1.1815,4564.3,4564.2,1.3354]
[1755445087627,21.3915,4564.3,4564.2,1.3354]
[1755445087830,21.3915,4564.3,4564.2,0.8367]
[1755445088032,21.6288,4564.3,4564.2,0.8367]
[1755445088223,21.6288,4564.3,4564.2,0.4133]
[1755445088424,23.13693131,4564.3,4564.2,0.58]
[1755445088622,23.13693131,4564.3,4564.2,1.3354]
[1755445089733,20.9629,4564.3,4564.2,1.3354]
[1755445090137,21.1192,4564.3,4564.2,1.3354]
[1755445090428,20.195,4564.3,4564.2,1.3354]
[1755445090926,0.609,4564.7,4564.6,1.0805]
[1755445091132,21.37133172,4564.7,4564.6,1.3354]
[1755445091526,21.00013172,4564.7,4564.6,1.3354]
[1755445091725,20.4268,4564.7,4564.6,1.3354]
[1755445092127,21.0001517,4564.7,4564.6,1.3354]
[1755445092332,21.5302517,4564.7,4564.6,1.3354]
[1755445092533,21.9438517,4564.7,4564.6,1.3354]
[1755445093333,21.6865517,4564.7,4564.6,1.3354]
[1755445093839,21.9438517,4564.7,4564.6,1.3354]
[1755445095132,21.9438517,4564.7,4564.6,0.8367]
[1755445095334,22.1811517,4564.7,4564.6,0.58]
[1755445095932,21.3153517,4564.7,4564.2,0.512]
[1755445096138,1.4188,4564.6,4564.5,0.4133]
[1755445096339,1.1815,4563.9,4563.8,0.2553]
[1755445096531,21.5918,4563.9,4563.8,0.2553]
[1755445096739,21.3545,4563.9,4563.8,0.8367]
[1755445097234,21.3545,4563.9,4563.8,1.3354]
[1755445097539,21.3545,4563.9,4563.8,0.6571]
[1755445097738,21.3545,4563.9,4563.8,0.8173]
[1755445098539,21.3545,4563.9,4563.8,1.0672]
[1755445098740,21.3545,4563.9,4563.8,1.3216]
[1755445099940,21.9290176,4563.9,4563.8,0.5735]
[1755445100133,21.5545176,4563.9,4563.8,0.3259]
[1755445100335,21.5545176,4563.9,4563.8,0.5679]
[1755445100638,22.1700176,4563.9,4563.8,0.242]
[1755445102741,22.1700176,4563.9,4563.4,3.4577]
[1755445102939,1.1866,4563.6,4563.5,0.4077]
[1755445103241,22.1741176,4563.6,4563.5,0.242]
[1755445103537,0.5711,4563.2,4563.1,0.5616]
[1755445103740,20.7301,4563.2,4563.1,1.3079]
[1755445104243,21.3456,4563.2,4563.1,1.3079]
[1755445104439,22.17376616,4563.2,4563.1,0.5679]
[1755445104635,22.17376616,4563.2,4563.1,0.4077]
[1755445105440,21.91976616,4563.2,4563.1,1.3079]
[1755445105638,20.73016616,4563.2,4563.1,1.3079]
[1755445109439,20.97816616,4563.2,4563.1,1.3079]
[1755445109944,21.67426616,4563.2,4563.1,1.3079]
[1755445110146,21.91676616,4563.2,4563.1,1.3079]
[1755445110338,20.73016616,4563.2,4563.1,1.3079]
[1755445110641,0.6155,4564.4,4563.2,0.43808]
[1755445110941,1.0306,4564.7,4564.6,0.3259]
[1755445111144,1.0306,4564.7,4564.6,0.8178]
[1755445111145,21.1826,4564.7,4564.6,0.8178]
[1755445111345,21.3501,4564.7,4564.6,0.8178]
[1755445111540,21.5926,4564.7,4564.6,0.8178]
[1755445112740,21.5926,4564.7,4564.6,0.5758]
[1755445113138,21.5926,4564.7,4564.6,0.3259]
[1755445113547,21.5926,4564.7,4564.6,0.8178]
[1755445115939,21.5926,4564.7,4564.6,0.5758]
[1755445116142,21.5926,4564.7,4564.2,0.4919]
[1755445116343,1.4406,4564.4,4564.3,0.8178]
[1755445116537,21.5746,4564.4,4564.3,0.8178]
[1755445119749,3.4558,4564.8,4564.3,0.8178]
[1755445119946,21.3241,4564.7,4564.6,0.3259]
[1755445120145,20.7826,4564.7,4564.6,0.8178]
[1755445120346,21.3231,4564.7,4564.6,0.8178]
[1755445120546,21.5656,4564.7,4564.6,0.8178]
[1755445122150,21.5656,4564.7,4564.0,3.2078]
[1755445122348,2.06797266,4564.4,4564.3,0.3259]
[1755445122551,22.43997266,4564.4,4564.3,0.5758]
[1755445123153,23.30947266,4564.4,4564.3,0.5758]
[1755445125251,20.124,4564.4,4564.1,0.4919]
[1755445125451,21.1916,4564.4,4564.3,0.8178]
[1755445125950,21.3221,4564.4,4564.3,0.8178]
[1755445126256,21.5646,4564.4,4564.3,0.8178]
[1755445126461,20.372,4564.4,4564.3,0.8178]
[1755445127071,21.1546,4564.4,4564.3,0.8178]
[1755445127669,21.3221,4564.4,4564.3,0.8178]
[1755445129372,20.9006,4564.4,4564.3,0.8178]
[1755445129568,21.1449,4564.4,4564.3,0.8178]
[1755445129768,21.3024,4564.4,4564.3,0.8178]
[1755445129967,21.5482,4564.4,4564.3,0.8178]
[1755445132963,21.5482,4564.4,4564.0,3.2078]
[1755445132964,1.4333,4564.3,4564.2,0.32]
[1755445133274,1.1875,4564.3,4564.2,0.8126]
[1755445133768,1.4333,4564.3,4564.2,0.8126]
[1755445138173,1.1875,4564.3,4564.2,0.8126]
[1755445138572,0.9432,4564.3,4564.2,0.8126]
[1755445138772,1.1875,4564.3,4564.2,0.8126]
[1755445138974,0.4043,4564.3,4564.2,0.8126]
[1755445139276,2.00481291,4564.3,4564.2,0.8126]
[1755445142171,1.75901291,4564.3,4564.2,0.8126]
[1755445142373,1.60151291,4564.3,4564.2,0.8126]
[1755445142577,0.57151291,4564.3,4564.2,0.8126]
[1755445143079,1.20081291,4564.3,4564.2,0.8126]
[1755445143380,1.60151291,4564.3,4564.2,0.8126]
[1755445144977,1.75901291,4564.3,4564.2,0.8126]
[1755445145176,2.00481291,4564.3,4564.2,0.8126]
[1755445147685,0.57151291,4564.3,4564.2,0.8126]
[1755445147884,1.22011291,4564.3,4564.2,0.8126]
[1755445148186,2.00481291,4564.3,4564.2,0.8126]
[1755445148580,1.4333,4564.3,4564.2,0.8126]
[1755445148778,2.00541138,4564.3,4564.2,0.8126]
[1755445150279,1.75961138,4564.3,4564.2,0.8126]
[1755445150487,0.57211138,4564.3,4564.2,0.8126]
[1755445150792,0.8736,4564.8,4564.3,0.4926]
[1755445150980,0.5618,4564.8,4564.7,0.8126]
[1755445151283,1.13389367,4564.8,4564.7,0.8126]
[1755445151484,1.75959367,4564.8,4564.7,0.8126]
[1755445151784,2.00539367,4564.8,4564.7,0.8126]
[1755445157590,0.97639367,4564.8,4564.7,0.5661]
[1755445157888,22.07769367,4564.8,4564.7,0.824]
[1755445158086,22.07769367,4564.8,4564.6,3.2078]
[1755445158290,1.15799367,4564.7,4564.6,3.2078]
[1755445158489,1.97939367,4564.7,4564.6,3.2078]
[1755445159281,3.74616633,4564.7,4564.6,3.2078]
[1755445160486,2.92476633,4564.7,4564.1,3.2078]
[1755445160686,0.2363,4564.1,4563.5,3.2078]
[1755445160891,1.009,4563.6,4563.5,3.7821]
[1755445161092,1.009,4563.6,4563.5,4.026]
[1755445162086,1.009,4563.6,4563.5,5.77087266]
[1755445165199,21.124,4564.2,4564.1,0.8182]
[1755445165498,20.115,4564.4,4564.1,5.77087266]
[1755445165698,0.8422,4564.5,4564.2,0.8182]
[1755445165885,1.4135306,4564.4,4564.3,0.2579]
[1755445166089,0.2363,4565.0,4564.3,0.8182]
[1755445166298,21.10829529,4564.9,4564.8,0.3164]
[1755445166499,21.69429529,4564.9,4564.8,0.8182]
[1755445166799,0.586,4565.7,4564.8,0.8182]
[1755445166994,0.4497,4565.2,4565.1,0.8182]
[1755445167192,0.7059,4565.2,4565.1,0.8182]
[1755445167595,1.109,4565.2,4565.1,0.8182]
[1755445167794,1.109,4565.2,4565.1,0.5603]
[1755445167994,1.109,4565.2,4565.1,0.8182]
[1755445168901,0.1,4565.2,4565.1,0.8182]
[1755445169100,0.8727,4565.2,4565.1,0.8182]
[1755445169399,1.109,4565.2,4565.1,0.8182]
[1755445171597,0.8727,4565.2,4564.7,3.2297]
[1755445171797,1.109,4565.2,4565.1,0.5603]
[1755445171994,1.109,4565.2,4565.1,0.4008]
[1755445172198,1.109,4565.2,4565.1,0.2439]
[1755445172503,0.586,4565.1,4564.8,0.4008]
[1755445172802,1.009,4564.9,4564.8,0.3164]
[1755445173000,1.009,4564.9,4564.8,0.5743]
[1755445173200,1.009,4564.9,4564.8,0.5603]
[1755445173799,1.009,4564.9,4564.7,3.2078]
[1755445173994,0.1,4565.2,4564.7,3.2078]
[1755445173995,1.009,4564.8,4564.7,3.2078]
[1755445174199,1.009,4564.8,4564.7,3.7681]
[1755445175506,1.009,4564.8,4564.7,4.026]
[1755445175901,1.009,4564.8,4564.7,3.7681]
[1755445176202,1.009,4564.8,4564.7,3.4517]
[1755445176397,1.009,4564.8,4564.7,3.2078]
[1755445179807,1.009,4564.8,4564.7,3.4517]
[1755445180504,0.7727,4564.8,4564.7,3.6086]
[1755445180707,1.009,4564.8,4564.7,4.026]
[1755445181505,1.009,4564.8,4564.7,3.2078]
[1755445181809,1.009,4564.8,4564.4,0.2439]
[1755445181810,0.99354344,4564.8,4564.4,0.2439]
[1755445181999,0.7727,4564.5,4564.4,0.2439]
[1755445182203,1.009,4564.5,4564.4,0.2439]
[1755445182404,1.009,4564.5,4564.2,3.2078]
[1755445182598,0.423,4564.3,4564.2,0.2439]
[1755445182803,22.84645626,4564.3,4563.9,0.2439]
[1755445183010,1.009,4563.6,4563.5,4.026]
[1755445184612,0.586,4564.2,4563.6,0.5018]
[1755445184913,1.009,4564.2,4564.1,0.5603]
[1755445185710,1.009,4564.2,4564.1,0.8182]
[1755445187011,1.009,4564.2,4563.5,3.4517]
[1755445187212,0.423,4563.6,4563.5,3.7821]
[1755445187414,1.009,4563.6,4563.5,3.7821]
[1755445187912,1.009,4563.6,4563.5,4.0293]
[1755445190218,0.2562,4563.6,4563.5,5.77417266]
[1755445190411,0.6208,4563.9,4563.5,5.77417266]
[1755445190616,0.6208,4563.9,4563.6,0.2472]
[1755445190617,0.4925,4563.9,4563.6,0.2472]
[1755445190821,20.5313,4564.3,4564.2,0.3295]
[1755445191122,21.1521,4564.3,4564.2,0.8324]
[1755445192026,3.4606,4564.5,4564.2,0.3295]
[1755445192227,0.57025649,4564.4,4564.3,0.8324]
[1755445192427,0.82305649,4564.4,4564.3,0.8324]
[1755445192721,1.61435649,4564.4,4564.3,0.8324]
[1755445195228,1.0441,4564.4,4564.3,0.8324]
[1755445204742,1.61515799,4564.4,4564.3,0.8324]
[1755445205244,1.0441,4564.2,4564.0,3.2078]
[1755445205445,1.0441,4563.6,4563.5,3.7845]
[1755445205945,1.0441,4563.6,4563.5,3.6275]
[1755445206333,0.6208,4563.5,4563.3,0.2472]
[1755445206643,1.0441,4563.4,4563.3,0.8324]
[1755445209938,0.6208,4563.3,4562.9,3.2078]
[1755445210134,1.0441,4563.0,4562.9,3.6275]
[1755445210334,2.78897266,4563.0,4562.9,3.2078]
[1755445210736,1.0441,4563.0,4562.9,3.6275]
[1755445210940,1.0441,4563.0,4562.9,3.7845]
[1755445211136,1.0441,4563.0,4562.9,3.6275]
[1755445211340,1.0441,4563.0,4562.9,3.2078]
[1755445211546,1.0441,4563.0,4562.9,3.455]
[1755445211745,1.0441,4563.0,4562.9,3.6275]
[1755445212241,1.0441,4563.0,4562.9,4.0402]
[1755445212440,21.1481,4563.0,4562.9,4.0402]
[1755445212646,1.0441,4563.0,4562.9,4.0402]
[1755445212840,1.0441,4563.0,4562.9,3.7845]
[1755445214251,1.0441,4563.0,4562.9,4.0402]
[1755445215748,1.0441,4563.0,4562.9,3.2078]
[1755445216249,1.0441,4563.0,4562.9,3.455]
[1755445216445,1.0441,4563.0,4562.9,3.2078]
[1755445216647,2.78897266,4563.0,4562.9,3.2078]
[1755445218242,2.78897266,4563.0,4471.6,0.0219]
[1755445218243,0.4082,4562.2,4562.1,3.2078]
[1755445218443,22.87427266,4562.2,4562.1,3.4563]
[1755445220645,0.4082,4561.6,4561.5,0.8225]
[1755445220854,1.0264,4561.6,4561.5,1.4439]
[1755445221044,1.0264,4561.6,4561.5,0.2485]
[1755445221239,1.0264,4561.6,4561.5,0.5679]
[1755445221547,0.4082,4561.6,4561.5,1.4439]
[1755445221750,0.4082,4561.6,4561.5,0.574]
[1755445222252,0.4301,4561.6,4561.3,3.2078]
[1755445222444,0.4082,4560.9,4560.8,4.6517]
[1755445223045,0.4082,4560.9,4560.8,1.4439]
[1755445223350,0.4082,4560.9,4560.8,1.0777]
[1755445223545,0.9735,4560.9,4560.8,1.0777]
[1755445223850,0.4082,4560.9,4560.3,3.2078]
[1755445224045,0.9735,4560.8,4560.7,0.5679]
[1755445224248,0.9735,4560.8,4560.7,0.8231]
[1755445225043,0.7801,4560.8,4560.7,1.0362]
[1755445225354,20.106,4560.8,4560.7,1.4439]
[1755445225850,3.2078,4562.3,4561.7,0.5037]
[1755445226048,3.616,4562.3,4562.2,1.0777]
[1755445226247,3.9879,4562.3,4562.2,1.4439]
[1755445228650,0.3719,4562.7,4562.2,0.574]
[1755445228958,0.7801,4562.7,4562.6,1.4439]
[1755445229151,20.8871,4562.7,4562.6,1.4439]
[1755445229848,23.8518,4563.0,4562.9,0.574]
[1755445230156,24.0949,4563.0,4562.9,1.4439]
[1755445231153,24.0949,4563.0,4562.9,1.0777]
[1755445231456,26.03317266,4563.0,4562.9,1.0777]
[1755445232052,26.03317266,4563.0,4562.9,1.4439]
[1755445232456,25.83977266,4563.0,4562.9,1.4439]
[1755445232952,25.46787266,4563.0,4561.9,0.8699]
[1755445233160,0.1934,4562.9,4561.8,3.2078]
[1755445233454,0.4082,4562.9,4562.8,1.4439]
[1755445233863,0.7801,4562.9,4562.8,1.4439]
[1755445235360,0.9735,4562.9,4562.8,1.4439]
[1755445235560,0.7801,4562.9,4562.8,1.4439]
[1755445238359,20.8851,4562.9,4562.8,1.4439]
[1755445238561,0.7801,4562.9,4562.8,1.4439]
[1755445238757,20.8851,4562.9,4562.8,1.4439]
[1755445239356,0.7801,4562.9,4562.8,1.4439]
[1755445239659,20.8841,4562.9,4562.8,1.4439]
[1755445239855,21.45369768,4562.9,4562.8,1.4439]
[1755445240050,1.34969768,4562.9,4562.8,1.4439]
[1755445240260,21.45369768,4562.9,4562.8,1.4439]
[1755445240952,21.08179768,4562.9,4562.8,1.4439]
[1755445241160,21.45369768,4562.9,4562.8,1.4439]
[1755445241656,20.67359768,4562.9,4562.8,1.4439]
[1755445242058,21.04549768,4562.9,4562.8,1.4439]
[1755445242763,1.34969768,4562.9,4562.8,1.4439]
[1755445243164,21.45269768,4562.9,4562.8,1.4439]
[1755445246966,1.34969768,4562.9,4562.8,1.4439]
[1755445247167,20.67159768,4562.9,4562.8,1.4439]
[1755445247367,0.56959768,4562.9,4562.8,1.4439]
[1755445247569,20.67159768,4562.9,4562.8,1.4439]
[1755445247867,0.56959768,4562.9,4562.8,1.4439]
[1755445248068,20.67159768,4562.9,4562.8,1.4439]
[1755445248262,21.05869768,4562.9,4562.8,1.4439]
[1755445248462,21.05769768,4562.9,4562.8,1.4439]
[1755445248662,0.95669768,4562.9,4562.8,1.4439]
[1755445249057,31.566,4563.8,4562.8,4.6736]
[1755445249261,21.46484895,4563.7,4563.6,1.4307]
[1755445249467,20.67104895,4563.7,4563.6,1.4307]
[1755445249663,21.46484895,4563.7,4563.6,1.4307]
[1755445250669,20.8948,4563.7,4563.6,1.4307]
[1755445252266,21.0882,4563.7,4563.6,1.4307]
[1755445253372,20.8948,4563.7,4563.6,1.4307]
[1755445253572,20.8928,4563.7,4563.6,1.4307]
[1755445253770,0.7938,4563.7,4563.6,1.4307]
[1755445253974,20.8928,4563.7,4563.6,1.4307]
[1755445254868,20.7285,4563.7,4563.6,1.4307]
[1755445255061,20.8928,4563.7,4563.6,1.4307]
[1755445255263,21.46372763,4563.7,4563.6,1.4307]
[1755445261575,21.48562763,4563.7,4563.3,3.4612]
[1755445261875,0.9873,4563.1,4563.0,0.6586]
[1755445262176,23.39810029,4563.1,4563.0,0.4949]
[1755445263272,21.65322763,4563.1,4563.0,1.4307]
[1755445263479,21.45972763,4563.1,4563.0,1.4307]
[1755445263678,21.07262763,4563.1,4563.0,1.4307]
[1755445264181,21.45972763,4563.1,4563.0,1.4307]
[1755445270487,0.57092763,4563.1,4563.0,1.4526]
[1755445270782,20.094,4563.2,4563.0,3.8028]
[1755445270988,20.094,4563.2,4563.1,1.4307]
[1755445271889,20.094,4563.4,4563.1,1.4307]
[1755445272090,20.094,4563.4,4563.3,0.5731]
[1755445272291,21.05247079,4563.4,4563.3,1.4307]
[1755445272482,20.094,4563.4,4563.3,1.4307]
[1755445273088,20.4811,4563.4,4563.3,1.4307]
[1755445273592,20.7235,4563.4,4563.3,1.4307]
[1755445274493,21.45923848,4563.4,4563.3,1.4307]
[1755445274992,0.3871,4563.3,4563.0,3.4493]
[1755445275192,0.7938,4563.3,4563.2,1.4307]
[1755445275995,1.36531952,4563.3,4563.2,1.4307]
[1755445278292,1.74487266,4563.9,4563.2,0.5731]